[Event "RUS-ch U21 2019"]
[Site "Loo"]
[Date "2019.04.21"]
[Round "2.1"]
[White "Murzin, Volodar"]
[Black "Khanin, Semen"]
[Result "0-1"]
[ECO "C50"]
[WhiteElo "2407"]
[BlackElo "2524"]
[Annotator "ChessBase"]
[PlyCount "120"]
[EventDate "2019.04.20"]
[EventType "tourn"]
[EventCountry "RUS"]
[SourceTitle "playchess.com"]
[Source "ChessBase"]
[SourceQuality "1"]
[TimeControl "40/5400+30:1800+30"]

1. e4 {[%emt 0:00:00]} e5 {[%emt 0:00:00]} 2. Nf3 {[%emt 0:00:07]} Nc6 {[%emt 0:00:00]} 3. Bc4 {[%emt 0:00:08]} Bc5 {[%emt 0:00:00]} 4. O-O {[%emt 0:00:14]} Nf6 {[%emt 0:00:00]} 5. d3 {[%emt 0:00:08]} d6 {[%emt 0:00:00]} 6. c3 {[%emt 0:00:19]} a6 {[%emt 0:00:00]} 7. a4 {[%emt 0:00:06]} Ba7 {[%emt 0:00:01]} 8. Re1 {[%emt 0:01:07]} O-O {[%emt 0:00:08]} 9. h3 {[%emt 0:00:13]} Ne7 {[%emt 0:00:06]} 10. d4 {[%emt 0:00:44]} Ng6 {[%emt 0:00:42]} 11. Nbd2 {[%emt 0:00:21]} h6 {[%emt 0:08:06]} 12. Bf1 {[%emt 0:11:00]} Re8 {[%emt 0:02:57]} 13. Qc2 {[%emt 0:00:32]} Nh7 {[%emt 0:16:46]} 14. dxe5 {[%emt 0:05:26]} dxe5 {[%emt 0:01:08]} 15. Nc4 {[%emt 0:01:44]} Qf6 {[%emt 0:02:45]} 16. Ne3 {[%emt 0:05:21]} Nf4 {[%emt 0:13:02]} 17. Nf5 {[%emt 0:07:28]} g6 {[%emt 0:09:16]} 18. Bxf4 {[%emt 0:09:40]} exf4 {[%emt 0:10:09]} 19. N5d4 {[%emt 0:12:25]} Ng5 {[%emt 0:00:35]} 20. e5 {[%emt 0:02:16]} Nxf3+ {[%emt 0:08:14]} 21. Nxf3 {[%emt 0:00:21]} Qc6 {[%emt 0:00:37]} 22. Bd3 {[%emt 0:03:33]} Kg7 {[%emt 0:08:45]} 23. Be4 {[%emt 0:03:50]} Qc5 {[%emt 0:00:06]} 24. b4 {[%emt 0:03:44]} Qe7 {[%emt 0:00:25]} 25. Rad1 {[%emt 0:02:54]} c6 {[%emt 0:02:32]} 26. b5 {[%emt 0:07:50]} cxb5 {[%emt 0:01:36]} 27. axb5 {[%emt 0:00:03]} axb5 {[%emt 0:01:19]} 28. Qb2 {[%emt 0:02:31]} Bc5 {[%emt 0:04:00]} 29. Bd5 {[%emt 0:04:39]} Ra6 {[%emt 0:02:09]} 30. Qxb5 {[%emt 0:02:04]} Rb6 {[%emt 0:00:06]} 31. Qc4 {[%emt 0:02:14]} Rb2 {[%emt 0:00:06]} 32. Rd2 {[%emt 0:01:19]} Rxd2 {[%emt 0:00:51]} 33. Nxd2 {[%emt 0:00:03]} Rd8 {[%emt 0:02:57]} 34. Nb3 {[%emt 0:08:57]} b5 {[%emt 0:00:19]} 35. Qe4 {[%emt 0:00:43]} Bf5 {[%emt 0:02:46]} 36. Qf3 {[%emt 0:00:05]} Bb6 {[%emt 0:00:18]} 37. Nd4 {[%emt 0:02:24]} Bxd4 {[%emt 0:00:42]} 38. cxd4 {[%emt 0:00:01]} Qb4 {[%emt 0:00:40]} 39. Rd1 {[%emt 0:01:00]} Bc2 {[%emt 0:00:10]} 40. Rf1 {[%emt 0:00:00]} Qxd4 {[%emt 0:00:00]} 41. Ba2 {[%emt 0:02:10]} Qxe5 {[%emt 0:04:32]} 42. Qb7 {[%emt 0:00:28]} Qf5 {[%emt 0:00:47]} 43. Re1 {[%emt 0:02:09]} Rd1 {[%emt 0:01:40]} 44. Rxd1 {[%emt 0:00:09]} Bxd1 {[%emt 0:00:05]} 45. Qa7 {[%emt 0:00:40]} Be2 {[%emt 0:03:51]} 46. f3 {[%emt 0:00:54]} Qf6 {[%emt 0:00:50]} 47. Kh2 {[%emt 0:00:00]} Bc4 {[%emt 0:00:05]} 48. Bxc4 {[%emt 0:00:00]} bxc4 {[%emt 0:00:53]} 49. Qc5 {[%emt 0:00:29]} Qc3 {[%emt 0:02:38]} 50. Qd5 g5 51. h4 {[%emt 0:01:14]} g4 {[%emt 0:06:04]} 52. fxg4 {[%emt 0:02:57]} Qg3+ {[%emt 0:00:04]} 53. Kh1 {[%emt 0:00:05]} Qxh4+ {[%emt 0:00:08]} 54. Kg1 {[%emt 0:00:01]} c3 {[%emt 0:00:39]} 55. Qe5+ {[%emt 0:00:27]} Qf6 {[%emt 0:00:05]} 56. Qc5 {[%emt 0:00:05]} f3 {[%emt 0:01:40]} 57. gxf3 {[%emt 0:00:31]} Qxf3 {[%emt 0:00:05]} 58. Kh2 {[%emt 0:00:17]} Qe2+ {[%emt 0:01:46]} 59. Kg3 {[%emt 0:00:50]} Qd3+ {[%emt 0:01:43]} 60. Kh4 {[%emt 0:00:16]} c2 {[%emt 0:00:15]} 0-1

[Event "RUS-ch U21 2019"]
[Site "Loo"]
[Date "2019.04.21"]
[Round "2.2"]
[White "Yeletsky, Ivan"]
[Black "Galaktionov, Artem"]
[Result "1-0"]
[ECO "B12"]
[WhiteElo "2409"]
[BlackElo "2332"]
[Annotator "NA"]
[PlyCount "59"]
[EventDate "2019.04.20"]
[EventType "tourn"]
[EventCountry "RUS"]
[SourceTitle "playchess.com"]
[Source "ChessBase"]
[SourceQuality "1"]
[TimeControl "40/5400+30:1800+30"]

1. e4 {[%emt 0:00:00]} c6 {[%emt 0:00:00]} 2. d4 {[%emt 0:00:00]} d5 {[%emt 0:00:00]} 3. e5 {[%emt 0:00:00]} Bf5 {[%emt 0:00:00]} 4. Nf3 {[%emt 0:00:06]} e6 {[%emt 0:00:00]} 5. Be2 {[%emt 0:00:08]} Ne7 {[%emt 0:00:38]} 6. O-O {[%emt 0:00:12]} Nd7 {[%emt 0:00:06]} 7. Nbd2 {[%emt 0:00:13]} Bg6 {[%emt 0:01:58]} 8. Nb3 {[%emt 0:05:50]} Nf5 {[%emt 0:01:26]} 9. Bd2 {[%emt 0:00:28]} Be7 {[%emt 0:00:27]} 10. Rc1 {[%emt 0:07:55]} O-O {[%emt 0:13:16]} 11. g4 {[%emt 0:09:32]} Nh4 {[%emt 0:01:16]} 12. Nxh4 {[%emt 0:00:13]} Bxh4 {[%emt 0:00:01]} 13. f4 {[%emt 0:00:15]} f5 {[%emt 0:07:11]} 14. g5 {[%emt 0:02:07]} h6 {[%emt 0:00:18]} 15. gxh6 {[%emt 0:01:12]} gxh6 {[%emt 0:00:04]} 16. Ba5 {[%emt 0:09:41]} Qe8 {[%emt 0:03:02]} 17. Rf3 {[%emt 0:12:08]} Kh7 {[%emt 0:04:32]} 18. Rh3 {[%emt 0:00:34]} Be7 19. Kh1 {[%emt 0:03:37]} Bf7 {[%emt 0:12:18]} 20. Nd2 {[%emt 0:11:05]} Rg8 {[%emt 0:05:13]} 21. Nf3 {[%emt 0:02:24]} Rg4 {[%emt 0:21:56]} 22. Ng5+ {[%emt 0:03:35]} Bxg5 {[%emt 0:01:07]} 23. fxg5 {[%emt 0:00:32]} Rxg5 {[%emt 0:01:11]} 24. Bd2 {[%emt 0:02:08]} Rg6 {[%emt 0:01:21]} 25. Bh5 {[%emt 0:03:52]} Rg7 {[%emt 0:00:28]} 26. Bxh6 {[%emt 0:00:58]} Bxh5 {[%emt 0:09:46]} 27. Bxg7 {[%emt 0:00:12]} Kxg7 {[%emt 0:00:05]} 28. Rxh5 {[%emt 0:00:24]} Nf8 {[%emt 0:01:56]} 29. Rg5+ {[%emt 0:02:31]} Kf7 {[%emt 0:00:20]} 30. Qh5+ {[%emt 0:00:14]} 1-0

[Event "RUS-ch U21 2019"]
[Site "Loo"]
[Date "2019.04.21"]
[Round "2.3"]
[White "Triapishko, Alexandr"]
[Black "Drygalov, Sergey"]
[Result "1/2-1/2"]
[ECO "A22"]
[WhiteElo "2506"]
[BlackElo "2485"]
[Annotator "RC"]
[PlyCount "130"]
[EventDate "2019.04.20"]
[EventType "tourn"]
[EventCountry "RUS"]
[SourceTitle "playchess.com"]
[Source "ChessBase"]
[SourceQuality "1"]
[TimeControl "40/5400+30:1800+30"]

1. c4 {[%emt 0:00:01]} e5 {[%emt 0:00:21]} 2. Nc3 {[%emt 0:00:27]} Nf6 {[%emt 0:02:28]} 3. g3 {[%emt 0:00:20]} Bb4 {[%emt 0:00:09]} 4. Bg2 {[%emt 0:17:34]} O-O {[%emt 0:00:58]} 5. Nf3 {[%emt 0:04:33]} Nc6 {[%emt 0:00:06]} 6. O-O {[%emt 0:04:02]} d6 {[%emt 0:00:06]} 7. d3 {[%emt 0:02:33]} h6 {[%emt 0:00:07]} 8. Na4 {[%emt 0:08:22]} Bc5 {[%emt 0:15:10]} 9. b3 {[%emt 0:15:06]} Qe7 {[%emt 0:04:06]} 10. Bb2 {[%emt 0:01:26]} a5 {[%emt 0:06:39]} 11. e3 {[%emt 0:09:02]} Ba7 {[%emt 0:02:01]} 12. Nc3 {[%emt 0:04:19]} Bf5 {[%emt 0:03:34]} 13. a3 {[%emt 0:06:28]} Qd7 {[%emt 0:14:13]} 14. d4 {[%emt 0:05:36]} exd4 {[%emt 0:02:25]} 15. Nd5 {[%emt 0:07:44]} Nxd5 {[%emt 0:10:30]} 16. cxd5 {[%emt 0:00:04]} Ne5 {[%emt 0:06:09]} 17. Bxd4 {[%emt 0:01:35]} Bg4 {[%emt 0:11:55]} 18. Bxa7 {[%emt 0:01:26]} Bxf3 {[%emt 0:02:45]} 19. Bxf3 {[%emt 0:00:05]} Rxa7 {[%emt 0:00:24]} 20. Bg2 {[%emt 0:02:56]} c5 {[%emt 0:01:26]} 21. dxc6 {[%emt 0:02:06]} bxc6 {[%emt 0:00:09]} 22. Rc1 {[%emt 0:01:12]} d5 {[%emt 0:01:50]} 23. Qd4 {[%emt 0:01:59]} Re8 {[%emt 0:01:02]} 24. Rc5 {[%emt 0:01:30]} Qe7 {[%emt 0:09:34]} 25. Qc3 {[%emt 0:00:48]} Rb8 {[%emt 0:02:07]} 26. e4 {[%emt 0:00:40]} Nd7 {[%emt 0:00:11]} 27. Rxc6 {[%emt 0:00:29]} dxe4 {[%emt 0:00:31]} 28. Rc8+ {[%emt 0:01:00]} Rxc8 {[%emt 0:00:24]} 29. Qxc8+ {[%emt 0:00:01]} Nf8 {[%emt 0:00:20]} 30. a4 {[%emt 0:01:01]} e3 {[%emt 0:00:12]} 31. fxe3 {[%emt 0:00:30]} Qxe3+ {[%emt 0:00:02]} 32. Kh1 {[%emt 0:00:04]} Qxb3 {[%emt 0:01:52]} 33. Qc5 {[%emt 0:00:06]} Qb8 {[%emt 0:00:10]} 34. Rc1 {[%emt 0:01:16]} Ne6 {[%emt 0:01:50]} 35. Qb5 {[%emt 0:00:32]} Qd8 {[%emt 0:00:56]} 36. Bb7 {[%emt 0:00:31]} Qe7 {[%emt 0:00:11]} 37. Bd5 {[%emt 0:00:33]} Nf8 {[%emt 0:00:48]} 38. Rf1 {[%emt 0:00:27]} Qd6 {[%emt 0:00:19]} 39. Qc4 {[%emt 0:00:28]} Ne6 {[%emt 0:00:18]} 40. Qc8+ {[%emt 0:00:00]} Kh7 {[%emt 0:00:00]} 41. Rd1 {[%emt 0:21:37]} g6 {[%emt 0:01:44]} 42. Qc3 {[%emt 0:05:37]} Ng7 {[%emt 0:08:35]} 43. Bf3 {[%emt 0:01:43]} Qb6 {[%emt 0:00:17]} 44. Qd4 {[%emt 0:00:58]} Qa6 {[%emt 0:02:22]} 45. Qd6 {[%emt 0:01:27]} Qc8 {[%emt 0:04:01]} 46. Qb6 {[%emt 0:00:43]} Qc3 {[%emt 0:01:19]} 47. Bb7 {[%emt 0:01:02]} Qc2 {[%emt 0:04:26]} 48. Rf1 {[%emt 0:00:54]} Rxb7 {[%emt 0:01:37]} 49. Qxb7 {[%emt 0:00:03]} Qxa4 {[%emt 0:00:03]} 50. Qxf7 {[%emt 0:00:42]} Qd4 {[%emt 0:00:23]} 51. Qf4 {[%emt 0:00:40]} Qd5+ {[%emt 0:00:14]} 52. Qf3 {[%emt 0:00:08]} Qe5 {[%emt 0:00:04]} 53. Kg2 {[%emt 0:01:25]} h5 {[%emt 0:00:41]} 54. Qf4 {[%emt 0:00:10]} Qd5+ {[%emt 0:00:04]} 55. Qf3 {[%emt 0:00:03]} Qe5 {[%emt 0:00:04]} 56. Rf2 {[%emt 0:00:53]} Nf5 {[%emt 0:01:08]} 57. Re2 {[%emt 0:00:19]} Qb5 {[%emt 0:00:16]} 58. Rc2 {[%emt 0:00:57]} Qe5 {[%emt 0:00:13]} 59. Re2 {[%emt 0:00:39]} Qb5 {[%emt 0:00:01]} 60. Re6 {[%emt 0:00:34]} Qb2+ {[%emt 0:00:17]} 61. Qe2 {[%emt 0:00:26]} Qc3 {[%emt 0:02:00]} 62. Re4 {[%emt 0:00:36]} Qc6 {[%emt 0:00:05]} 63. Kh3 {[%emt 0:00:26]} Qd7 {[%emt 0:01:36]} 64. Kg2 {[%emt 0:00:24]} Qc6 {[%emt 0:00:23]} 65. Qf3 {[%emt 0:00:36]} a4 1/2-1/2

[Event "RUS-ch U21 2019"]
[Site "Loo"]
[Date "2019.04.21"]
[Round "2.4"]
[White "Drygalov, Andrey"]
[Black "Ofitserian, Boris"]
[Result "1-0"]
[ECO "B90"]
[WhiteElo "2481"]
[BlackElo "2409"]
[Annotator "ChessBase"]
[PlyCount "107"]
[EventDate "2019.04.20"]
[EventType "tourn"]
[EventCountry "RUS"]
[SourceTitle "playchess.com"]
[Source "ChessBase"]
[SourceQuality "1"]
[TimeControl "40/5400+30:1800+30"]

1. e4 {[%emt 0:00:00]} c5 {[%emt 0:00:00]} 2. Nf3 {[%emt 0:00:00]} d6 {[%emt 0:00:00]} 3. d4 {[%emt 0:00:00]} cxd4 {[%emt 0:00:00]} 4. Nxd4 {[%emt 0:00:00]} Nf6 {[%emt 0:00:02]} 5. Nc3 {[%emt 0:00:00]} a6 {[%emt 0:00:04]} 6. Be3 {[%emt 0:00:01]} e5 {[%emt 0:04:19]} 7. Nb3 {[%emt 0:00:06]} Be6 {[%emt 0:02:49]} 8. f3 {[%emt 0:00:07]} Be7 {[%emt 0:22:21]} 9. Qd2 {[%emt 0:00:06]} O-O {[%emt 0:00:05]} 10. O-O-O {[%emt 0:00:15]} a5 {[%emt 0:00:03]} 11. a4 {[%emt 0:00:05]} Nc6 {[%emt 0:00:03]} 12. g4 {[%emt 0:00:05]} Nb4 {[%emt 0:00:11]} 13. Kb1 {[%emt 0:00:18]} Rc8 {[%emt 0:06:43]} 14. g5 {[%emt 0:00:05]} Nh5 {[%emt 0:00:16]} 15. Rg1 {[%emt 0:00:05]} g6 {[%emt 0:13:32]} 16. Bb5 {[%emt 0:03:01]} f5 {[%emt 0:06:57]} 17. gxf6 {[%emt 0:05:21]} Nxf6 {[%emt 0:07:18]} 18. Bg5 {[%emt 0:36:49]} Qc7 {[%emt 0:12:13]} 19. Rg2 {[%emt 0:17:43]} Rfd8 {[%emt 0:06:02]} 20. Bxf6 {[%emt 0:07:43]} Bxf6 {[%emt 0:00:04]} 21. Nd5 {[%emt 0:00:55]} Nxd5 {[%emt 0:06:31]} 22. exd5 {[%emt 0:00:06]} Bh3 {[%emt 0:00:55]} 23. Rg3 {[%emt 0:01:03]} Bf5 {[%emt 0:03:04]} 24. Bd3 {[%emt 0:00:44]} Bxd3 {[%emt 0:05:59]} 25. Qxd3 {[%emt 0:00:10]} e4 {[%emt 0:02:13]} 26. Qxe4 {[%emt 0:13:29]} Re8 {[%emt 0:00:16]} 27. Qd3 {[%emt 0:00:05]} Re3 {[%emt 0:00:57]} 28. Qd2 {[%emt 0:00:05]} Rce8 {[%emt 0:00:31]} 29. Qxa5 {[%emt 0:05:54]} Qg7 {[%emt 0:00:17]} 30. c3 {[%emt 0:01:12]} Qd7 {[%emt 0:00:12]} 31. Ka2 {[%emt 0:05:02]} Be5 {[%emt 0:00:22]} 32. Rg2 {[%emt 0:01:39]} Rxf3 {[%emt 0:00:25]} 33. Qb5 {[%emt 0:00:11]} Qf7 {[%emt 0:00:23]} 34. Nd4 {[%emt 0:02:23]} Bxd4 {[%emt 0:00:01]} 35. Rxd4 {[%emt 0:00:07]} Rfe3 {[%emt 0:00:58]} 36. Rgd2 {[%emt 0:00:58]} Re1 {[%emt 0:00:59]} 37. Qb6 {[%emt 0:00:31]} Qd7 {[%emt 0:00:35]} 38. Rb4 {[%emt 0:01:38]} Ra8 {[%emt 0:00:30]} 39. Rdd4 {[%emt 0:00:39]} Re7 {[%emt 0:00:35]} 40. Rdc4 {[%emt 0:00:00]} Ra6 {[%emt 0:00:00]} 41. Qb5 {[%emt 0:00:50]} Qf5 {[%emt 0:05:25]} 42. Rd4 {[%emt 0:15:35]} Ra8 {[%emt 0:11:54]} 43. h4 {[%emt 0:02:05]} Rf8 {[%emt 0:03:59]} 44. Qd3 {[%emt 0:01:50]} Qf2 {[%emt 0:02:35]} 45. Re4 {[%emt 0:00:45]} Ref7 {[%emt 0:00:12]} 46. Qe2 {[%emt 0:01:32]} Qc5 {[%emt 0:06:02]} 47. Rb5 {[%emt 0:00:36]} Qc7 {[%emt 0:00:15]} 48. Re8 {[%emt 0:03:14]} Rxe8 {[%emt 0:00:24]} 49. Qxe8+ {[%emt 0:00:05]} Kg7 {[%emt 0:00:03]} 50. Qe4 {[%emt 0:00:14]} Rf5 {[%emt 0:00:22]} 51. Qb4 {[%emt 0:00:44]} Kh6 {[%emt 0:03:46]} 52. Rxb7 {[%emt 0:00:25]} Qd8 {[%emt 0:00:01]} 53. Qd4 {[%emt 0:00:25]} Qg8 {[%emt 0:00:53]} 54. c4 {[%emt 0:00:38]} 1-0

[Event "RUS-ch U21 2019"]
[Site "Loo"]
[Date "2019.04.21"]
[Round "2.5"]
[White "Pogosyan, Stefan"]
[Black "Gaifullin, Artur"]
[Result "0-1"]
[ECO "D37"]
[WhiteElo "2344"]
[BlackElo "2453"]
[Annotator "ChessBase"]
[PlyCount "92"]
[EventDate "2019.04.20"]
[EventType "tourn"]
[EventCountry "RUS"]
[SourceTitle "playchess.com"]
[Source "ChessBase"]
[SourceQuality "1"]
[TimeControl "40/5400+30:1800+30"]

1. d4 {[%emt 0:00:00]} Nf6 {[%emt 0:00:00]} 2. c4 {[%emt 0:00:00]} e6 {[%emt 0:00:00]} 3. Nf3 {[%emt 0:00:00]} d5 {[%emt 0:00:00]} 4. Nc3 {[%emt 0:00:00]} dxc4 {[%emt 0:00:00]} 5. e4 {[%emt 0:01:01]} Bb4 {[%emt 0:00:03]} 6. Bg5 {[%emt 0:00:10]} c5 {[%emt 0:00:09]} 7. Bxc4 {[%emt 0:00:22]} cxd4 {[%emt 0:00:05]} 8. Nxd4 {[%emt 0:00:05]} Bxc3+ {[%emt 0:00:06]} 9. bxc3 {[%emt 0:00:11]} Qa5 {[%emt 0:00:04]} 10. Bb5+ {[%emt 0:11:05]} Nbd7 {[%emt 0:00:16]} 11. Bxf6 {[%emt 0:03:46]} Qxc3+ {[%emt 0:00:02]} 12. Kf1 {[%emt 0:00:14]} gxf6 {[%emt 0:00:03]} 13. Rc1 {[%emt 0:00:10]} Qb4 {[%emt 0:00:53]} 14. h4 {[%emt 0:05:01]} a6 {[%emt 0:00:45]} 15. Rc4 {[%emt 0:13:54]} Qd6 {[%emt 0:00:45]} 16. Qc2 {[%emt 0:09:54]} O-O {[%emt 0:09:51]} 17. Bxd7 {[%emt 0:02:17]} Bxd7 {[%emt 0:00:03]} 18. Rh3 {[%emt 0:00:51]} b5 {[%emt 0:00:25]} 19. Rcc3 {[%emt 0:01:38]} e5 {[%emt 0:18:51]} 20. Nf5 {[%emt 0:13:53]} Bxf5 {[%emt 0:00:06]} 21. exf5 {[%emt 0:00:05]} Rfd8 {[%emt 0:00:04]} 22. h5 {[%emt 0:08:47]} Qd1+ {[%emt 0:04:14]} 23. Qxd1 {[%emt 0:00:15]} Rxd1+ 24. Ke2 Rad8 {[%emt 0:00:04]} 25. h6 {[%emt 0:05:03]} R1d2+ {[%emt 0:01:02]} 26. Ke3 {[%emt 0:03:33]} Kf8 {[%emt 0:02:12]} 27. Rg3 {[%emt 0:03:59]} b4 {[%emt 0:00:15]} 28. Rc6 {[%emt 0:03:48]} R8d3+ {[%emt 0:03:22]} 29. Ke4 {[%emt 0:00:01]} Rxg3 {[%emt 0:00:08]} 30. fxg3 {[%emt 0:00:08]} Rxa2 {[%emt 0:00:02]} 31. Rxf6 {[%emt 0:00:19]} Ra5 {[%emt 0:07:23]} 32. Kd3 {[%emt 0:09:03]} b3 {[%emt 0:00:56]} 33. Kc3 {[%emt 0:00:15]} Rb5 {[%emt 0:00:07]} 34. Kb2 {[%emt 0:00:04]} a5 {[%emt 0:00:03]} 35. g4 {[%emt 0:03:07]} e4 {[%emt 0:02:05]} 36. g5 {[%emt 0:00:47]} Ke7 {[%emt 0:00:12]} 37. g4 {[%emt 0:01:07]} e3 {[%emt 0:31:13]} 38. Rc6 {[%emt 0:00:16]} a4 {[%emt 0:00:15]} 39. Rc1 {[%emt 0:00:24]} a3+ {[%emt 0:00:15]} 40. Kxa3 {[%emt 0:00:00]} b2 {[%emt 0:00:00]} 41. Rb1 {[%emt 0:00:17]} Kf8 {[%emt 0:00:23]} 42. Ka2 {[%emt 0:09:50]} e2 {[%emt 0:00:07]} 43. g6 {[%emt 0:00:05]} fxg6 {[%emt 0:00:11]} 44. fxg6 {[%emt 0:00:04]} hxg6 {[%emt 0:00:13]} 45. h7 {[%emt 0:00:02]} Kg7 {[%emt 0:00:06]} 46. Rh1 {[%emt 0:00:05]} b1=Q+ {[%emt 0:00:04]} 0-1

[Event "RUS-ch U21 2019"]
[Site "Loo"]
[Date "2019.04.22"]
[Round "3.1"]
[White "Gaifullin, Artur"]
[Black "Murzin, Volodar"]
[Result "1/2-1/2"]
[ECO "D02"]
[WhiteElo "2453"]
[BlackElo "2407"]
[Annotator "ChessBase"]
[PlyCount "151"]
[EventDate "2019.04.20"]
[EventType "tourn"]
[EventCountry "RUS"]
[SourceTitle "playchess.com"]
[Source "ChessBase"]
[SourceQuality "1"]
[TimeControl "40/5400+30:1800+30"]

1. Nf3 {[%emt 0:00:00]} d5 {[%emt 0:00:00]} 2. d4 {[%emt 0:00:00]} Nf6 {[%emt 0:00:00]} 3. Bf4 {[%emt 0:00:02]} c5 {[%emt 0:01:11]} 4. e3 {[%emt 0:00:09]} Nc6 {[%emt 0:01:00]} 5. Nbd2 {[%emt 0:00:08]} cxd4 {[%emt 0:05:32]} 6. exd4 {[%emt 0:00:05]} Bg4 {[%emt 0:01:54]} 7. c3 {[%emt 0:00:25]} a6 {[%emt 0:03:23]} 8. h3 {[%emt 0:00:44]} Bxf3 {[%emt 0:03:32]} 9. Nxf3 {[%emt 0:05:50]} e6 {[%emt 0:00:53]} 10. Qb3 {[%emt 0:02:45]} Na5 {[%emt 0:04:34]} 11. Qc2 {[%emt 0:00:02]} Bd6 {[%emt 0:01:11]} 12. Ne5 {[%emt 0:00:04]} O-O {[%emt 0:04:35]} 13. Bd3 {[%emt 0:00:04]} h6 {[%emt 0:03:31]} 14. O-O {[%emt 0:00:43]} Rc8 {[%emt 0:00:20]} 15. Rae1 {[%emt 0:01:27]} Nc6 {[%emt 0:02:04]} 16. Qd2 {[%emt 0:00:21]} Bxe5 {[%emt 0:11:26]} 17. dxe5 {[%emt 0:00:08]} Ne4 {[%emt 0:01:00]} 18. Qe3 {[%emt 0:05:23]} Ne7 {[%emt 0:03:15]} 19. Bxe4 {[%emt 0:00:18]} dxe4 {[%emt 0:00:04]} 20. Qxe4 {[%emt 0:00:07]} Qd5 {[%emt 0:00:27]} 21. Qxd5 {[%emt 0:02:56]} Nxd5 {[%emt 0:00:02]} 22. Re4 {[%emt 0:00:11]} b5 {[%emt 0:06:13]} 23. Rd1 {[%emt 0:01:11]} Rc6 {[%emt 0:02:42]} 24. Rdd4 {[%emt 0:00:34]} Rfc8 {[%emt 0:03:07]} 25. Bd2 {[%emt 0:01:26]} Nb6 {[%emt 0:05:26]} 26. g4 {[%emt 0:02:45]} Rc4 {[%emt 0:05:48]} 27. f4 {[%emt 0:01:22]} b4 {[%emt 0:03:45]} 28. f5 {[%emt 0:12:47]} Rxd4 {[%emt 0:01:41]} 29. Rxd4 {[%emt 0:00:02]} bxc3 {[%emt 0:00:11]} 30. Bxc3 {[%emt 0:00:32]} Nd5 {[%emt 0:00:22]} 31. Be1 {[%emt 0:06:32]} Rc2 {[%emt 0:03:08]} 32. Rd2 {[%emt 0:00:09]} Rc1 {[%emt 0:00:05]} 33. Kf2 {[%emt 0:00:08]} g5 {[%emt 0:02:42]} 34. fxg6 {[%emt 0:03:19]} fxg6 {[%emt 0:00:02]} 35. h4 g5 {[%emt 0:01:17]} 36. hxg5 {[%emt 0:01:25]} hxg5 {[%emt 0:01:36]} 37. b3 {[%emt 0:00:21]} Kf7 {[%emt 0:02:14]} 38. Rb2 {[%emt 0:01:25]} Kg6 {[%emt 0:01:24]} 39. Bd2 {[%emt 0:02:58]} Rh1 {[%emt 0:04:08]} 40. Kg2 {[%emt 0:00:00]} Rd1 {[%emt 0:00:00]} 41. Rc2 {[%emt 0:03:49]} Nb6 {[%emt 0:05:51]} 42. Be3 {[%emt 0:11:21]} Nd5 {[%emt 0:00:40]} 43. Bd2 {[%emt 0:07:31]} Nb6 {[%emt 0:00:34]} 44. Ba5 {[%emt 0:02:23]} Nd5 {[%emt 0:04:15]} 45. Rc6 {[%emt 0:01:05]} Nf4+ {[%emt 0:00:56]} 46. Kf3 {[%emt 0:02:24]} Rf1+ {[%emt 0:04:11]} 47. Ke4 {[%emt 0:07:06]} Rg1 {[%emt 0:00:19]} 48. Rxa6 {[%emt 0:01:42]} Rxg4 {[%emt 0:00:06]} 49. Bd2 {[%emt 0:00:15]} Nd5+ {[%emt 0:01:30]} 50. Kf3 {[%emt 0:02:34]} Rd4 {[%emt 0:01:13]} 51. Ke2 {[%emt 0:01:22]} Kf5 {[%emt 0:00:46]} 52. Ra8 {[%emt 0:00:37]} g4 {[%emt 0:04:11]} 53. a4 {[%emt 0:00:13]} Nf4+ {[%emt 0:07:16]} 54. Bxf4 {[%emt 0:01:12]} Kxf4 {[%emt 0:00:17]} 55. a5 {[%emt 0:00:10]} Re4+ {[%emt 0:03:28]} 56. Kf1 {[%emt 0:00:41]} Rxe5 {[%emt 0:02:27]} 57. b4 {[%emt 0:03:52]} Rb5 {[%emt 0:00:59]} 58. a6 {[%emt 0:00:10]} Rxb4 {[%emt 0:00:07]} 59. Rf8+ {[%emt 0:00:05]} Kg3 {[%emt 0:00:28]} 60. a7 {[%emt 0:00:03]} Rb1+ {[%emt 0:00:07]} 61. Ke2 {[%emt 0:00:04]} Rb2+ {[%emt 0:00:11]} 62. Ke3 {[%emt 0:00:23]} Rb3+ {[%emt 0:00:08]} 63. Ke4 {[%emt 0:00:07]} Rb4+ {[%emt 0:00:03]} 64. Ke5 {[%emt 0:00:11]} Rb5+ {[%emt 0:01:23]} 65. Kxe6 {[%emt 0:00:09]} Ra5 {[%emt 0:02:57]} 66. a8=Q {[%emt 0:00:06]} Rxa8 {[%emt 0:00:02]} 67. Rxa8 {[%emt 0:00:02]} Kf4 {[%emt 0:00:11]} 68. Ra4+ {[%emt 0:15:32]} Kf3 {[%emt 0:00:12]} 69. Kf5 {[%emt 0:00:25]} g3 {[%emt 0:00:12]} 70. Ra3+ {[%emt 0:00:03]} Kf2 {[%emt 0:00:04]} 71. Kf4 {[%emt 0:00:03]} g2 {[%emt 0:00:07]} 72. Ra2+ {[%emt 0:00:06]} Kg1 {[%emt 0:00:57]} 73. Ra8 {[%emt 0:00:37]} Kf2 {[%emt 0:00:22]} 74. Ra2+ {[%emt 0:01:15]} Kg1 {[%emt 0:00:06]} 75. Kg3 {[%emt 0:00:02]} Kh1 {[%emt 0:00:06]} 76. Rxg2 {[%emt 0:00:02]} 1/2-1/2